bitfinex/quotes_ETHUSD_20250725
["timestamp","ask_amount","ask_price","bid_price","bid_amount"]
[1753410961183,4.516,3670.6,3670.5,3.18472446]
[1753410961489,0.136,3670.8,3670.5,2.72542446]
[1753410961690,0.9716,3670.7,3670.5,0.001]
[1753410961988,8.72505024,3670.6,3670.5,0.001]
[1753410962350,9.69665024,3670.6,3670.5,0.001]
[1753410963693,6.9723,3670.6,3670.5,0.001]
[1753410963888,9.69665024,3670.6,3670.5,0.001]
[1753410965162,12.69665024,3670.6,3670.5,0.001]
[1753410965387,12.69665024,3670.6,3670.1,0.04]
[1753410965388,3.52934715,3670.2,3670.1,0.04]
[1753410965676,11.71734715,3670.2,3670.1,0.04]
[1753410965993,12.68894715,3670.2,3670.1,0.04]
[1753410966290,9.9533,3670.2,3669.1,0.04]
[1753410966473,0.55,3668.2,3667.1,0.04]
[1753410966660,0.55,3668.0,3667.2,2.7268189]
[1753410966866,4.572,3667.9,3667.2,0.32261189]
[1753410967168,4.572,3667.9,3667.1,0.04]
[1753410967380,0.7937,3668.3,3667.3,0.7991]
[1753410967565,4.579,3668.2,3667.4,0.7463]
[1753410967752,4.579,3668.2,3667.6,2.72651773]
[1753410967967,7.088,3669.1,3667.8,0.7991]
[1753410968286,4.579,3669.0,3667.9,0.8892224]
[1753410968484,4.579,3669.0,3667.9,0.4593]
[1753410969254,4.579,3669.0,3667.8,3.9847738]
[1753410969666,2.72572476,3668.8,3667.8,0.7991]
[1753410969867,4.579,3669.0,3667.1,2.76687986]
[1753410969868,2.72614921,3668.2,3667.3,0.8259]
[1753410970071,0.55,3668.6,3667.3,0.8259]
[1753410970072,4.576,3668.1,3667.3,0.8259]
[1753410970578,4.576,3668.0,3667.4,0.4593]
[1753410970899,4.576,3667.9,3667.5,0.15722]
[1753410971098,0.9716,3668.9,3667.6,0.7463]
[1753410971299,4.575,3668.8,3667.8,2.72643001]
[1753410971600,4.575,3668.8,3667.7,0.4593]
[1753410971806,7.8716,3669.1,3667.9,0.8326]
[1753410972102,4.578,3669.0,3668.0,0.89255943]
[1753410972400,7.088,3669.1,3668.1,0.48656207]
[1753410972700,4.576,3669.0,3668.4,2.72592401]
[1753410972900,4.576,3669.0,3668.1,0.4593]
[1753410973308,4.576,3669.0,3668.1,3.18543382]
[1753410973527,4.573,3668.9,3667.9,0.8326]
[1753410973809,4.574,3668.8,3668.0,2.72628135]
[1753410974172,4.574,3668.8,3667.9,3.55894596]
[1753410974606,4.574,3668.8,3667.9,3.55893755]
[1753410974788,4.574,3668.8,3667.9,0.8326]
[1753410975106,1.7701,3668.7,3667.5,0.15722]
[1753410975279,2.72595162,3668.5,3667.3,2.72680173]
[1753410975484,4.569,3668.4,3667.6,2.72651216]
[1753410975680,4.569,3668.4,3667.4,3.21762193]
[1753410975886,4.569,3668.4,3667.5,2.72665303]
[1753410976195,4.569,3668.4,3667.5,2.72664064]
[1753410976371,0.136,3667.9,3667.5,2.72664064]
[1753410976570,4.569,3667.8,3667.5,2.72664064]
[1753410976772,4.569,3667.8,3667.6,2.72655149]
[1753410977075,4.569,3667.8,3667.6,3.21746228]
[1753410977304,4.569,3667.8,3667.6,3.21746106]
[1753410977966,4.569,3667.8,3667.6,0.4909]
[1753410978422,4.569,3667.8,3667.4,0.136]
[1753410978717,4.569,3667.8,3667.1,0.04]
[1753410978876,4.705,3667.8,3667.2,0.6269]
[1753410979075,4.705,3667.8,3667.2,0.136]
[1753410979281,5.042,3667.8,3667.1,0.04]
[1753410979504,0.136,3667.3,3667.1,0.04]
[1753410979918,0.136,3667.3,3667.2,2.72687609]
[1753410980286,0.8809387,3667.6,3667.5,2.72665303]
[1753410980505,0.8809387,3667.6,3667.5,4.09749275]
[1753410980706,0.136,3668.4,3667.5,1.99773972]
[1753410980891,2.86645932,3671.0,3667.9,0.136]
[1753410980892,0.8112,3669.3,3667.9,0.136]
[1753410981213,0.136,3668.8,3668.7,2.72576116]
[1753410981413,0.8112,3669.3,3668.7,2.72576116]
[1753410981620,0.7686,3669.8,3668.7,0.4909]
[1753410981919,0.04,3669.9,3669.7,2.72501839]
[1753410982132,0.04,3669.9,3669.8,2.72494413]
[1753410982346,0.04,3669.9,3669.6,0.6269]
[1753410982627,0.04,3669.9,3669.1,0.8318]
[1753410982628,0.9422,3669.8,3669.1,3.5572105]
[1753410982789,0.136,3669.5,3669.4,2.72520377]
[1753410982980,4.564,3669.5,3669.1,0.136]
[1753410983186,5.0332,3669.5,3668.9,2.72554397]
[1753410983387,0.136,3668.9,3668.4,2.86191949]
[1753410983589,0.55,3668.7,3667.4,0.7757]
[1753410983899,5.5072,3668.6,3667.7,2.72648433]
[1753410984227,0.9422,3668.5,3667.1,0.04]
[1753410984426,0.8017,3668.0,3667.1,0.04]
[1753410984584,4.578,3667.9,3667.2,2.72681803]
[1753410984785,4.578,3667.9,3667.3,2.72675496]
[1753410985185,4.578,3667.9,3667.2,3.06771883]
[1753410985424,4.578,3667.9,3667.3,2.72680173]
[1753410985791,4.578,3667.9,3667.3,2.7267886]
[1753410986021,4.578,3667.9,3667.2,0.34085764]
[1753410986319,0.9422,3667.8,3667.2,0.34085764]
[1753410986520,4.578,3667.9,3667.1,0.04]
[1753410986882,4.57,3667.8,3667.1,0.04]
[1753410987086,4.57,3667.8,3667.6,2.72657825]
[1753410987391,4.569,3667.8,3667.7,2.72647489]
[1753410988803,4.563,3667.8,3667.1,0.04]
[1753410989001,4.562,3667.8,3667.5,2.72658374]
[1753410989394,0.9422,3667.7,3667.1,0.04]
[1753410989723,0.9422,3667.7,3667.1,2.76693934]
[1753410989939,0.9422,3667.7,3667.1,0.04]
[1753410990107,4.562,3667.8,3667.4,2.72666995]
[1753410990423,5.5042,3667.8,3667.1,2.76695019]
[1753410990631,4.562,3667.8,3667.1,0.04]
[1753410990926,4.562,3667.8,3667.5,2.72663674]
[1753410991110,5.5042,3667.8,3667.2,2.72687386]
[1753410991421,5.5042,3667.8,3667.1,0.04]
[1753410991422,0.9422,3667.7,3667.1,0.04]
[1753410991622,0.7535,3667.6,3667.1,0.04]
[1753410992127,0.7535,3667.6,3666.2,3.4909]
[1753410992128,1.3035,3667.3,3666.1,0.04]
[1753410992312,7.093,3667.3,3666.1,0.04]
[1753410992626,0.58344812,3668.3,3666.1,0.04]
[1753410992627,0.819501,3668.5,3667.0,0.8149]
[1753410992800,0.7535,3668.6,3667.2,0.8149]
[1753410993005,0.9422,3668.4,3667.3,0.02726801]
[1753410993212,5.5582,3668.4,3667.6,2.72653442]
[1753410993530,5.5582,3668.4,3667.2,0.8149]
[1753410993707,0.136,3667.9,3667.4,0.136]
[1753410993906,0.136,3667.9,3667.4,0.6269]
[1753410994106,0.136,3667.9,3667.5,2.72665303]
[1753410994506,0.136,3667.9,3667.7,2.72644489]
[1753410994715,0.7535,3667.8,3667.4,0.136]
[1753410994934,0.136,3667.9,3667.7,2.72650434]
[1753410995233,4.616,3668.4,3667.8,2.72643001]
[1753410995436,0.9422,3668.6,3668.4,2.72591878]
[1753410995437,0.136,3668.5,3668.4,2.72591878]
[1753410995599,0.04,3668.9,3668.4,2.72591878]
[1753410995798,0.04,3668.9,3668.0,0.84216281]
[1753410995799,0.38956629,3668.8,3668.3,0.136]
[1753410996040,0.25356629,3668.8,3668.7,2.72576116]
[1753410996211,0.176,3668.9,3668.8,2.72568687]
[1753410996535,0.04,3668.9,3668.8,2.72568687]
[1753410996848,0.04,3668.9,3668.8,4.58843167]
[1753410997337,0.04,3668.9,3668.8,4.09753167]
[1753410997536,0.04,3668.9,3668.1,2.72620702]
[1753410997537,0.04,3668.9,3668.1,0.4909]
[1753410997714,0.04,3668.9,3668.8,2.72568687]
[1753410997909,0.04,3668.9,3668.8,3.21658687]
[1753410999100,0.04,3668.9,3668.8,2.72568687]
[1753410999500,0.04,3668.9,3668.5,0.4909]
[1753410999810,0.04,3668.9,3668.4,0.8267]
[1753411000000,0.8209,3669.8,3668.5,0.80515909]
[1753411000200,0.8209,3669.8,3669.3,2.72525054]
[1753411000439,0.8209,3669.8,3668.6,0.7779]
[1753411001250,0.8209,3669.8,3668.7,3.21666116]
[1753411001421,4.601,3670.1,3669.2,0.8227]
[1753411001622,4.601,3670.1,3669.6,2.72504856]
[1753411001815,4.601,3670.1,3669.5,2.72515342]
[1753411002010,4.601,3670.1,3669.2,0.8227]
[1753411002247,0.9822,3669.9,3668.8,1.47306612]
[1753411002451,0.9822,3669.9,3669.2,2.72536397]
[1753411002647,0.04,3669.9,3668.6,2.72583538]
[1753411002814,0.9422,3669.8,3668.6,2.72583538]
[1753411003010,0.8316,3669.7,3668.4,3.54864173]
[1753411003211,2.72519366,3669.5,3668.4,2.72595833]
[1753411003538,5.5392,3669.4,3668.0,1.3136]
[1753411003718,1.7738,3669.3,3668.3,2.72604125]
[1753411004110,1.7738,3669.3,3668.4,2.7259675]
[1753411004310,1.7738,3669.3,3668.0,0.8227]
[1753411004642,1.7738,3669.3,3667.6,0.7779]
[1753411004643,3.66760863,3669.2,3667.6,1.3136]
[1753411004843,3.19840863,3669.2,3668.0,2.72621144]
[1753411005011,0.4692,3669.1,3668.1,2.72620104]
[1753411005731,0.4692,3669.1,3667.9,2.72634335]
[1753411005940,0.4692,3669.1,3668.3,2.72600747]
[1753411006649,0.4692,3669.1,3667.8,2.72640722]
[1753411006945,0.4707,3669.0,3667.8,3.0]
[1753411007109,0.4707,3669.0,3668.0,2.72621349]
[1753411007309,0.4707,3669.0,3667.8,0.0272643]
[1753411007507,0.4692,3669.1,3667.6,1.3136]
[1753411007508,0.4707,3669.1,3668.1,2.7261353]
[1753411007713,0.136,3669.0,3668.5,0.136]
[1753411007909,0.136,3668.8,3668.2,2.86212364]
[1753411008194,0.136,3668.8,3668.2,0.136]
[1753411008350,0.8336,3669.3,3667.9,0.7468]
[1753411008538,0.136,3668.9,3668.4,0.136]
[1753411008745,0.136,3668.7,3668.2,0.136]
[1753411008946,0.136,3668.7,3667.6,0.8227]
[1753411008947,4.585,3668.6,3667.6,0.8227]
[1753411009147,4.585,3668.6,3668.1,0.136]
[1753411009567,4.585,3668.6,3668.2,2.7261327]
[1753411009783,4.585,3668.6,3668.3,2.72605765]
[1753411010096,4.585,3668.6,3668.4,2.72592617]
[1753411010248,4.585,3668.6,3668.4,2.72594938]
[1753411010448,4.585,3668.6,3668.1,2.86219028]
[1753411010790,4.585,3668.6,3668.1,2.86219681]
[1753411011100,4.585,3668.6,3666.6,9.82030939]
[1753411011101,0.7826,3668.4,3667.7,2.726455]
[1753411011396,0.136,3668.2,3667.8,2.72641931]
[1753411011761,0.136,3668.2,3667.9,2.72635242]
[1753411011942,0.136,3668.2,3667.7,0.136]
[1753411012143,0.7826,3668.4,3668.1,2.72620702]
[1753411012349,0.7826,3668.4,3668.0,2.86226571]
[1753411012643,0.9584,3668.3,3667.3,1.2836]
[1753411012892,0.136,3668.2,3667.7,0.136]
[1753411013261,1.0944,3668.2,3667.7,0.136]
[1753411013463,1.0944,3668.2,3667.8,2.72643001]
[1753411013965,1.0944,3668.2,3667.9,2.72634904]
[1753411014147,0.6067,3668.2,3667.9,2.72634904]
[1753411014352,0.6067,3668.2,3667.8,2.72641425]
[1753411014794,0.6067,3668.2,3667.9,2.72634185]
[1753411014945,0.6067,3668.2,3667.9,2.72628971]
[1753411015146,0.136,3668.2,3667.7,0.136]
[1753411015377,0.136,3668.2,3667.9,2.72632818]
[1753411015577,0.136,3668.2,3667.8,2.72637793]
[1753411015787,1.7117,3668.1,3667.1,0.04]
[1753411016171,4.561,3668.0,3667.3,2.72680173]
[1753411016351,1.7846,3668.5,3667.5,2.72665303]
[1753411016551,4.561,3668.4,3667.4,0.89229432]
[1753411016791,4.561,3668.4,3667.4,0.86502705]
[1753411016978,0.4707,3668.3,3667.2,0.7984]
[1753411017154,0.9584,3668.3,3667.2,0.7984]
[1753411017492,0.9584,3668.3,3667.6,2.72657622]
[1753411017792,0.9584,3668.2,3667.1,0.04]
[1753411017969,0.9584,3668.2,3667.1,2.76693631]
[1753411018586,0.9584,3668.2,3667.2,2.72687609]
[1753411018948,0.9584,3668.2,3667.1,0.04]
[1753411019151,4.553,3668.1,3667.8,2.72638056]
[1753411019427,4.553,3668.1,3667.2,0.48706876]
[1753411019603,0.9584,3668.0,3667.1,0.04]
[1753411019890,0.9584,3668.0,3667.6,2.72656483]
[1753411020092,0.9584,3668.0,3667.5,2.72662813]
[1753411020279,0.4707,3667.9,3667.6,2.72652764]
[1753411020465,4.553,3668.1,3667.1,0.04]
[1753411020466,1.7163,3667.8,3667.1,0.04]
[1753411021173,0.9584,3667.7,3667.1,0.04]
[1753411021359,2.72671754,3667.5,3667.1,0.04]
[1753411021550,0.7912,3667.6,3667.1,0.04]
[1753411021551,3.52527609,3667.2,3667.1,0.04]
[1753411022071,4.48367609,3667.2,3667.1,0.04]
[1753411022274,1.7568,3667.2,3667.1,0.04]
[1753411022653,5.3484,3667.2,3667.1,0.04]
[1753411022871,6.3068,3667.2,3667.1,0.04]
[1753411023456,0.7984,3667.2,3667.1,0.04]
[1753411023678,6.3058,3667.2,3667.1,0.04]
[1753411024396,9.03267609,3667.2,3667.1,0.04]
[1753411024554,0.7984,3667.1,3666.1,0.04]
[1753411024756,3.52573498,3666.6,3666.1,0.04]
[1753411024990,5.5054,3666.5,3666.1,0.04]
[1753411025154,0.7755,3666.4,3666.1,0.04]
[1753411025359,4.46138132,3666.4,3666.1,0.04]
[1753411025558,3.50298132,3666.4,3666.1,0.04]
[1753411025791,0.136,3666.2,3666.1,0.04]
[1753411026152,1.0944,3666.2,3666.1,0.04]
[1753411026894,4.552,3666.2,3666.1,0.04]
[1753411027098,0.136,3666.3,3666.1,0.04]
[1753411027300,4.547,3666.2,3666.1,0.04]
[1753411028395,5.5054,3666.2,3666.1,0.04]
[1753411028711,6.4007,3666.2,3666.1,0.04]
[1753411029213,6.3967,3666.2,3666.1,0.04]
[1753411029507,3.27799192,3665.7,3665.5,0.004]
[1753411029664,2.72836407,3665.2,3663.5,2.72955984]
[1753411029866,11.65786407,3665.2,3663.4,0.4598]
[1753411030065,11.65786407,3665.2,3663.5,2.72960752]
[1753411030066,0.8125,3664.6,3663.5,2.72960752]
[1753411030401,0.8125,3664.6,3663.2,1.2436]
[1753411030402,4.57,3664.5,3663.2,1.2436]
[1753411030716,5.5284,3664.5,3663.8,2.72939704]
[1753411030910,5.5284,3664.5,3663.9,2.72932773]
[1753411031202,5.5284,3664.5,3663.2,0.7838]
[1753411031203,0.9584,3664.4,3663.2,0.7838]
[1753411031562,0.9584,3664.3,3663.2,0.7838]
[1753411031799,0.9584,3664.3,3663.5,2.7296258]
[1753411032003,0.4877,3664.2,3663.6,2.72954769]
[1753411032170,0.9584,3664.2,3663.2,3.51365235]
[1753411032504,0.9584,3664.2,3663.2,0.7838]
[1753411032703,0.9584,3664.2,3663.6,2.72954857]
[1753411033002,0.9584,3664.2,3663.5,2.72962735]
[1753411033214,0.9584,3664.2,3663.3,0.4598]
[1753411033215,4.561,3664.2,3663.3,0.4598]
[1753411033405,4.561,3664.2,3663.6,2.72954955]
[1753411033568,4.561,3664.2,3663.2,0.7838]
[1753411033904,5.5194,3664.2,3663.2,0.7838]
[1753411034065,5.5194,3664.2,3663.1,0.04]
[1753411034267,6.3254,3664.2,3663.1,0.04]
[1753411034499,6.3214,3664.2,3663.1,0.04]
[1753411034939,6.3214,3664.2,3663.1,2.76986141]
[1753411035222,6.3214,3664.2,3663.8,2.72939867]
[1753411035386,6.3214,3664.2,3663.1,0.04]
[1753411035387,6.3174,3664.2,3663.1,0.04]
[1753411035588,9.59650867,3664.2,3663.1,0.04]
[1753411035789,12.59650867,3664.2,3663.1,0.04]
[1753411035987,8.04350867,3664.2,3664.1,0.01063289]
[1753411036240,12.61550867,3664.2,3664.1,0.01063289]
[1753411036586,5.3144,3664.2,3664.1,0.01063289]
[1753411036791,0.806,3664.2,3664.1,2.73981604]
[1753411037002,4.581,3664.5,3664.4,2.72895972]
[1753411037422,0.7834,3664.4,3664.3,2.72903419]
[1753411037626,4.586,3664.4,3664.3,2.72903419]
[1753411037802,4.586,3664.4,3662.4,4.38964451]
[1753411038003,0.4492,3665.2,3663.1,5.39120656]
[1753411038219,0.7834,3666.0,3663.8,5.39120656]
[1753411038417,0.4492,3666.3,3664.0,18.233893]
[1753411038630,5.3734,3666.4,3664.1,2.75645697]
[1753411038790,0.4492,3666.3,3664.9,2.72854994]
[1753411038990,3.4492,3666.3,3664.0,2.72925764]
[1753411039204,0.136,3666.0,3665.5,2.72814077]
[1753411039422,1.06561595,3666.8,3664.5,5.39120656]
[1753411039423,0.136,3666.5,3665.9,0.136]
[1753411039625,0.5852,3666.5,3665.9,2.72782483]
[1753411039794,5.1752,3666.5,3665.8,0.136]
[1753411039994,3.0,3666.4,3665.8,0.136]
[1753411040326,3.0,3666.4,3664.6,0.1348]
[1753411040526,0.176,3665.9,3665.1,0.1368]
[1753411040729,0.1368,3665.6,3665.1,0.1368]
[1753411041028,0.1368,3665.3,3664.8,0.1368]
[1753411041226,0.586,3665.3,3664.8,0.1368]
[1753411041528,0.7947,3665.1,3663.9,0.1535]
[1753411041729,0.1368,3664.7,3664.1,0.1368]
[1753411041930,0.4492,3664.8,3664.0,2.72924602]
[1753411042117,0.1368,3664.4,3663.9,0.1368]
[1753411042296,4.589,3664.3,3663.9,2.86607291]
[1753411042492,4.589,3664.3,3663.9,0.1368]
[1753411043050,0.1368,3664.1,3663.6,0.1368]
[1753411043336,1.7388,3664.2,3663.3,0.1368]
[1753411043337,0.1368,3663.8,3663.3,0.1368]
[1753411043509,0.7539,3663.6,3663.1,0.04]
[1753411043828,0.1368,3663.2,3663.1,0.04]
[1753411044216,4.7358,3663.2,3663.1,0.04]
[1753411044603,5.6727,3663.2,3663.1,0.04]
[1753411044830,3.80355367,3663.2,3663.1,0.04]
[1753411045020,5.6737,3663.2,3663.1,0.04]
[1753411045412,1.0737,3663.2,3663.1,0.04]
[1753411045615,5.6737,3663.2,3663.1,0.04]
[1753411046199,1.0737,3663.2,3663.1,0.04]
[1753411046638,5.6677,3663.2,3663.1,0.04]
[1753411046799,1.0737,3663.2,3663.1,0.04]
[1753411047136,4.7308,3663.2,3663.1,0.04]
[1753411047336,5.6677,3663.2,3663.1,0.04]
[1753411048340,4.592,3663.2,3663.1,0.04]
[1753411048538,4.592,3663.2,3663.1,2.7699282]
[1753411049041,0.4877,3663.9,3663.1,0.04]
[1753411049214,4.591,3663.8,3663.1,0.04]
[1753411049420,0.1368,3663.7,3663.6,2.72954232]
[1753411049740,0.1368,3663.9,3663.8,2.72940662]
[1753411049939,4.589,3664.1,3663.7,0.1368]
[1753411050107,0.7965,3664.6,3663.7,0.1368]
[1753411050108,0.7965,3664.6,3664.5,2.72888525]
[1753411050450,4.7268,3664.6,3664.2,2.7290531]
[1753411050610,3.0,3664.9,3664.0,2.72925764]
[1753411050804,3.0,3664.9,3663.9,0.1368]
[1753411050805,0.1368,3664.4,3664.3,2.72901627]
[1753411051046,0.1368,3664.4,3664.2,2.72909165]
[1753411051228,4.589,3664.3,3664.1,2.72916725]
[1753411051740,4.589,3664.3,3664.2,2.72910867]
[1753411051941,0.1368,3664.4,3663.9,0.1368]
[1753411051942,0.1368,3664.4,3664.3,2.72903419]
[1753411052341,4.7198,3664.4,3663.9,2.8660692]
[1753411052546,4.7198,3664.4,3663.9,0.1368]
[1753411052761,4.7198,3664.4,3664.1,2.72913223]
[1753411052959,4.7198,3664.4,3664.3,2.72903419]
[1753411053166,4.7198,3664.4,3664.0,2.7291928]
[1753411053312,4.7198,3664.4,3664.0,2.72925764]
[1753411053512,4.7198,3664.4,3664.1,2.72918315]
[1753411053713,4.7198,3664.4,3663.9,0.1368]
[1753411053915,1.38958426,3665.0,3664.6,2.72875833]
[1753411054163,4.577,3664.6,3664.2,0.1368]
[1753411054313,0.586,3664.5,3663.9,0.1368]
[1753411054526,0.586,3664.5,3664.2,2.72910439]
[1753411054709,0.1368,3664.5,3664.4,2.72895972]
[1753411054960,0.4877,3664.9,3663.9,0.1368]
[1753411055121,1e-08,3665.0,3664.9,2.72858741]
[1753411055321,1e-08,3665.0,3664.9,3.42646802]
[1753411055726,1e-08,3665.0,3664.9,2.72858741]
[1753411056530,1e-08,3665.0,3664.2,0.1535]
[1753411056531,1e-08,3665.0,3664.8,2.72864573]
[1753411056739,0.9369,3664.9,3663.7,0.1535]
[1753411057035,0.801,3664.8,3664.5,2.72888095]
[1753411057317,0.4492,3664.7,3664.5,2.72888466]
[1753411057930,0.801,3664.8,3664.7,2.72873632]
[1753411058174,4.58100001,3665.0,3664.7,2.72873632]
[1753411058175,1e-08,3665.0,3664.7,2.72873632]
[1753411058320,1e-08,3665.0,3664.9,2.72858741]
[1753411058719,1e-08,3665.0,3663.6,2.72954553]
[1753411058952,1e-08,3665.0,3663.3,0.1348]
[1753411058953,1.7551,3664.9,3663.8,3.01771117]
[1753411059148,1.2674,3664.9,3663.8,3.01771117]
[1753411059322,1.2674,3664.9,3664.4,2.72890708]
[1753411059550,4.57900001,3665.0,3664.6,2.72876197]
[1753411059754,4.57900001,3665.0,3664.9,2.72858741]
[1753411059928,0.44920001,3665.0,3663.9,2.72933213]
[1753411060250,0.44920001,3665.0,3664.4,2.72889406]
[1753411060468,0.44920001,3665.0,3664.2,2.72906933]
[1753411060621,3.66543004,3665.0,3664.2,2.72906933]
[1753411060821,0.93690001,3665.0,3664.3,2.72902455]
[1753411061053,0.93690001,3665.0,3664.4,2.72895388]
[1753411061357,0.93690001,3665.0,3664.3,2.72901533]
[1753411061527,0.93690001,3665.0,3663.3,2.72977759]
[1753411061734,0.93690001,3665.0,3664.0,2.72918595]
[1753411061946,0.93690001,3665.0,3664.6,2.7287939]
[1753411061947,4.573,3664.9,3664.6,2.7287939]
[1753411062275,4.57100001,3665.0,3663.8,2.72940662]
[1753411062434,4.57100001,3665.0,3664.9,2.72858741]
[1753411062840,1e-08,3665.0,3664.7,2.72867701]
[1753411063056,0.4492,3664.9,3663.9,0.28829066]
[1753411063258,5.5079,3664.9,3663.8,2.72940662]
[1753411063571,5.5079,3664.9,3664.3,2.72898977]
[1753411063753,5.5079,3664.9,3663.9,2.72933213]
[1753411063955,1e-08,3665.0,3664.8,2.72860122]
[1753411064159,4.569,3664.9,3664.8,2.72860122]
[1753411064334,5.0182,3664.9,3663.1,0.04]
[1753411064592,5.5059,3664.9,3664.4,2.7289189]
[1753411064760,0.9369,3664.8,3664.4,2.7289189]
[1753411064960,4.569,3664.9,3664.6,2.72880596]
[1753411065275,0.9369,3664.7,3664.5,2.72887729]
[1753411065427,0.9369,3664.7,3664.6,2.72881078]
[1753411065624,1e-08,3665.0,3664.7,2.72869846]
[1753411065860,4.564,3664.9,3664.7,2.72866609]
[1753411066060,4.6998,3664.8,3664.7,2.72866609]
[1753411066332,4.6998,3664.8,3664.5,2.72886505]
[1753411066560,0.1368,3664.6,3664.1,0.1368]
[1753411066869,0.1368,3664.6,3664.5,2.72888525]
[1753411067744,0.586,3664.6,3664.5,2.72888525]
[1753411067939,0.586,3664.6,3664.4,2.72890316]
[1753411068566,1.7452,3664.5,3663.3,0.1535]
[1753411068872,0.1368,3664.3,3663.5,0.1368]
[1753411069184,0.1368,3664.0,3663.7,2.72942888]
[1753411069469,0.1368,3663.8,3663.4,2.72967396]
[1753411069619,5.0022,3663.7,3663.2,2.72984924]
[1753411069823,1.3838,3663.6,3663.1,0.04]
[1753411070023,1.3838,3663.6,3663.2,2.72978774]
[1753411070272,1.3838,3663.6,3663.2,2.72985367]
[1753411070635,0.9282,3663.5,3663.1,0.04]
[1753411070822,0.1368,3663.3,3663.1,0.04]
[1753411071869,0.1368,3663.3,3663.1,2.76991801]
[1753411072042,0.1368,3663.3,3663.2,2.72985367]
[1753411072431,0.7978,3663.6,3663.4,2.72965933]
[1753411072771,0.1368,3663.5,3663.4,2.72965933]
[1753411072923,4.545,3663.6,3663.5,2.72963013]
[1753411073271,4.6818,3663.6,3663.5,2.72963013]
[1753411073436,4.545,3663.6,3663.5,2.72963013]
[1753411074638,4.536,3663.6,3663.5,2.72963013]
[1753411074938,5.4642,3663.6,3663.1,0.04]
[1753411075137,4.6728,3663.5,3663.1,0.04]
[1753411075343,4.6728,3663.5,3663.4,2.72970464]
[1753411075542,4.6728,3663.5,3663.1,0.04]
[1753411075543,4.6728,3663.5,3663.3,2.72976356]
[1753411075742,4.6728,3663.5,3663.4,2.72970464]
[1753411076529,0.1368,3663.5,3663.4,2.72970464]
[1753411076725,4.6678,3663.5,3663.4,2.72970464]
[1753411077028,1.686,3664.0,3663.8,2.72935147]
[1753411077228,5.116,3663.9,3663.6,2.72948957]
[1753411077467,5.116,3663.9,3663.7,2.72947373]
[1753411077953,5.116,3663.9,3663.7,2.7294586]
[1753411078366,5.116,3663.9,3663.5,2.72962572]
[1753411078367,0.7578,3664.0,3663.9,2.72933213]
[1753411078573,4.526,3664.0,3663.8,2.72937344]
[1753411078881,4.9742,3663.9,3663.8,2.72940662]
[1753411079037,4.525,3663.9,3663.8,2.72940662]
[1753411079237,0.1368,3664.1,3663.8,2.72940662]
[1753411079552,0.586,3664.1,3663.8,2.72940662]
[1753411079776,4.9722,3664.0,3663.8,2.72940662]
[1753411079955,4.9722,3664.0,3663.7,2.72941594]
[1753411080157,4.9722,3664.0,3663.6,2.86635114]
[1753411080158,0.4492,3663.9,3663.6,0.1368]
[1753411080354,0.8026,3663.7,3663.1,0.041]
[1753411080554,0.1368,3663.5,3663.1,0.041]
[1753411080796,2.72985367,3663.2,3663.1,0.041]
[1753411080979,8.17695367,3663.2,3663.1,0.041]
[1753411081155,12.65515367,3663.2,3663.1,0.041]
[1753411081363,0.7883,3662.5,3662.1,0.04]
[1753411081560,0.1368,3662.2,3662.1,0.04]
[1753411081964,0.586,3662.2,3662.1,0.04]
[1753411082281,3.79559909,3662.2,3662.1,0.04]
[1753411082473,4.61239909,3662.2,3662.1,0.04]
[1753411082662,1.8818,3662.2,3662.1,0.04]
[1753411082858,4.61239909,3662.2,3662.1,0.04]
[1753411083194,6.4098,3662.2,3662.1,0.04]
[1753411083456,9.69039909,3662.2,3662.1,0.04]
[1753411083616,1.8818,3662.2,3662.1,0.04]
[1753411083765,6.4118,3662.2,3662.1,0.04]
[1753411084278,12.69239909,3662.2,3662.1,0.04]
[1753411084506,7.09949737,3661.8,3661.7,0.2495]
[1753411084660,0.55,3661.7,3660.7,2.73169674]
[1753411084862,0.1368,3661.2,3661.1,2.77141951]
[1753411085107,5.115,3661.2,3661.1,0.04]
[1753411085313,0.1368,3661.2,3661.1,0.04]
[1753411085611,4.6648,3661.2,3661.1,2.77141951]
[1753411086105,0.1368,3661.2,3661.1,2.77141951]
[1753411086302,4.527,3661.2,3661.1,0.04]
[1753411086613,4.527,3661.2,3661.1,2.77141951]
[1753411087098,4.6638,3661.2,3661.1,2.77141951]
[1753411087668,4.6628,3661.2,3661.1,2.77141951]
[1753411087896,4.526,3661.2,3661.1,2.77141951]
[1753411089603,0.8186,3661.8,3661.7,2.73097195]
[1753411089806,3.479,3662.2,3662.1,2.73067365]
[1753411089807,0.7724,3662.2,3662.1,2.73067365]
[1753411089978,7.101,3662.3,3662.2,2.73059909]
[1753411090372,0.7724,3663.8,3662.2,3.58657636]
[1753411090595,0.1368,3663.4,3662.9,0.1368]
[1753411090795,4.522,3663.7,3663.6,2.72955562]
[1753411090971,4.522,3663.7,3663.5,2.72961896]
[1753411090972,0.1368,3663.6,3663.5,2.72961896]
[1753411091180,0.1368,3663.6,3663.1,0.1368]
[1753411091380,0.4492,3663.5,3662.5,0.1935]
[1753411091602,0.1368,3663.1,3662.5,0.1368]
[1753411091809,4.03680495,3663.4,3662.2,2.73058248]
[1753411091810,0.1368,3662.8,3662.2,0.1368]
[1753411092103,4.521,3662.7,3662.2,0.02730599]